[Event "Live Chess"]
[Site "Chess.com"]
[Date "2024.06.02"]
[Round "-"]
[White "Val1024"]
[Black "Step-S"]
[Result "1-0"]
[WhiteElo "1739"]
[BlackElo "1332"]
[TimeControl "300"]
[EndTime "6:40:45 PDT"]
[Termination "Val1024 won on time"]

1. d4 {[%clk 0:04:57.3]} 1... e5 {[%clk 0:04:58.7]} 2. c4 {[%clk 0:04:57]} 2...
d6 {[%clk 0:04:57.2]} 3. dxe5 {[%clk 0:04:55.7]} 3... Nc6 {[%clk 0:04:55.4]} 4.
exd6 {[%clk 0:04:54.1]} 4... Bxd6 {[%clk 0:04:54.3]} 5. Nc3 {[%clk 0:04:53.5]}
5... Nf6 {[%clk 0:04:51.2]} 6. Nf3 {[%clk 0:04:52.8]} 6... Qe7 {[%clk
0:04:45.4]} 7. Bg5 {[%clk 0:04:49.7]} 7... Bg4 {[%clk 0:04:42.7]} 8. Nd5 {[%clk
0:04:43.2]} 8... Qe6 {[%clk 0:04:13]} 9. Bxf6 {[%clk 0:04:39.1]} 9... gxf6
{[%clk 0:04:11]} 10. e3 {[%clk 0:04:38.7]} 10... O-O-O {[%clk 0:04:06.7]} 11.
Qa4 {[%clk 0:04:35.8]} 11... Kb8 {[%clk 0:03:57.3]} 12. Be2 {[%clk 0:04:31.5]}
12... Rhg8 {[%clk 0:03:44]} 13. h3 {[%clk 0:04:24.2]} 13... Bh5 {[%clk
0:03:40.4]} 14. g4 {[%clk 0:04:19.9]} 14... Bg6 {[%clk 0:03:36.5]} 15. O-O-O
{[%clk 0:04:06.5]} 15... Qe4 {[%clk 0:03:13.6]} 16. Nc3 {[%clk 0:04:02.2]} 16...
Qe7 {[%clk 0:02:54.4]} 17. Nd4 {[%clk 0:03:44.2]} 17... Qd7 {[%clk 0:02:05.1]}
18. Nxc6+ {[%clk 0:03:32.7]} 18... Qxc6 {[%clk 0:02:03.5]} 19. Qxc6 {[%clk
0:03:31.1]} 19... bxc6 {[%clk 0:02:02.7]} 20. Bf3 {[%clk 0:03:30.7]} 20... Kb7
{[%clk 0:01:56.8]} 21. a3 {[%clk 0:03:25.8]} 21... a6 {[%clk 0:01:49.5]} 22. b4
{[%clk 0:03:20.4]} 22... Be5 {[%clk 0:01:41.2]} 23. Na4 {[%clk 0:03:15.1]} 23...
Rxd1+ {[%clk 0:01:16.3]} 24. Rxd1 {[%clk 0:03:09.5]} 24... f5 {[%clk 0:00:59.3]}
25. Nc5+ {[%clk 0:03:01.6]} 25... Kc8 {[%clk 0:00:52.5]} 26. g5 {[%clk
0:02:59.8]} 26... Rd8 {[%clk 0:00:39.1]} 27. Rxd8+ {[%clk 0:02:55.8]} 27... Kxd8
{[%clk 0:00:37.8]} 28. Bxc6 {[%clk 0:02:55.3]} 28... Ke7 {[%clk 0:00:28.8]} 29.
f4 {[%clk 0:02:50.8]} 29... Bg7 {[%clk 0:00:19.4]} 30. Nxa6 {[%clk 0:02:41.7]}
30... Kd6 {[%clk 0:00:17.9]} 31. Bf3 {[%clk 0:02:41]} 31... c6 {[%clk
0:00:16.2]} 32. c5+ {[%clk 0:02:35.1]} 32... Kd7 {[%clk 0:00:13.2]} 33. Nb8+
{[%clk 0:02:34.2]} 33... Kc7 {[%clk 0:00:11.4]} 34. Nxc6 {[%clk 0:02:33.4]}
34... h6 {[%clk 0:00:09]} 35. h4 {[%clk 0:02:30.8]} 35... hxg5 {[%clk
0:00:06.6]} 36. hxg5 {[%clk 0:02:30.1]} 36... Bc3 {[%clk 0:00:04.2]} 37. Kc2
{[%clk 0:02:27.7]} 37... Bg7 {[%clk 0:00:02.8]} 38. Ne7 {[%clk 0:02:25.6]} 1-0

[Event "Live Chess"]
[Site "Chess.com"]
[Date "2024.06.02"]
[Round "-"]
[White "dmitro74"]
[Black "gobbles19"]
[Result "1-0"]
[WhiteElo "1753"]
[BlackElo "2198"]
[TimeControl "300"]
[EndTime "6:40:54 PDT"]
[Termination "dmitro74 won by resignation"]

1. d4 {[%clk 0:04:57.6]} 1... Nf6 {[%clk 0:04:59]} 2. c4 {[%clk 0:04:55.9]} 2...
e6 {[%clk 0:04:57.7]} 3. Nf3 {[%clk 0:04:53.2]} 3... c5 {[%clk 0:04:57.3]} 4. e3
{[%clk 0:04:48.1]} 4... a6 {[%clk 0:04:54.8]} 5. Nc3 {[%clk 0:04:45.7]} 5... Be7
{[%clk 0:04:51.9]} 6. Be2 {[%clk 0:04:40]} 6... O-O {[%clk 0:04:48.9]} 7. O-O
{[%clk 0:04:38.5]} 7... b6 {[%clk 0:04:45.1]} 8. a4 {[%clk 0:04:32.7]} 8... Bb7
{[%clk 0:04:42.3]} 9. d5 {[%clk 0:04:30.2]} 9... exd5 {[%clk 0:04:39.6]} 10.
cxd5 {[%clk 0:04:28.6]} 10... d6 {[%clk 0:04:37.9]} 11. e4 {[%clk 0:04:25.9]}
11... Nbd7 {[%clk 0:04:36.4]} 12. Bg5 {[%clk 0:04:14.8]} 12... Re8 {[%clk
0:04:33.5]} 13. Re1 {[%clk 0:04:01.2]} 13... h6 {[%clk 0:04:22.7]} 14. Bf4
{[%clk 0:03:58.1]} 14... Bf8 {[%clk 0:04:10.4]} 15. Bd3 {[%clk 0:03:45.9]} 15...
Rc8 {[%clk 0:04:06.5]} 16. b3 {[%clk 0:03:40]} 16... g5 {[%clk 0:03:59.5]} 17.
Bg3 {[%clk 0:03:36.8]} 17... Bg7 {[%clk 0:03:58.8]} 18. Rc1 {[%clk 0:03:31.5]}
18... Nh5 {[%clk 0:03:56.9]} 19. h3 {[%clk 0:03:23.2]} 19... Nxg3 {[%clk
0:03:55.5]} 20. fxg3 {[%clk 0:03:22.1]} 20... Ne5 {[%clk 0:03:52.3]} 21. Nxe5
{[%clk 0:03:08.8]} 21... Bxe5 {[%clk 0:03:52.2]} 22. Kf2 {[%clk 0:03:05.3]}
22... Bxc3 {[%clk 0:03:45.7]} 23. Rxc3 {[%clk 0:03:01.6]} 23... Qf6+ {[%clk
0:03:44.8]} 24. Qf3 {[%clk 0:02:54.5]} 24... Qxc3 {[%clk 0:03:43.2]} 25. e5
{[%clk 0:02:53.4]} 25... Rxe5 {[%clk 0:03:35.6]} 26. Bh7+ {[%clk 0:02:51.1]}
26... Kxh7 {[%clk 0:03:34.2]} 27. Qxc3 {[%clk 0:02:49.5]} 1-0

[Event "Live Chess"]
[Site "Chess.com"]
[Date "2024.06.02"]
[Round "-"]
[White "RichardABates"]
[Black "Colm_Buckley"]
[Result "1-0"]
[WhiteElo "2368"]
[BlackElo "1883"]
[TimeControl "300"]
[EndTime "6:41:02 PDT"]
[Termination "RichardABates won by resignation"]

1. d4 {[%clk 0:04:57.1]} 1... e6 {[%clk 0:04:58.5]} 2. c4 {[%clk 0:04:55.1]}
2... d5 {[%clk 0:04:57.2]} 3. Nf3 {[%clk 0:04:52.7]} 3... c5 {[%clk 0:04:55.9]}
4. cxd5 {[%clk 0:04:50.6]} 4... exd5 {[%clk 0:04:53.8]} 5. Nc3 {[%clk
0:04:48.8]} 5... Nc6 {[%clk 0:04:52.8]} 6. dxc5 {[%clk 0:04:47]} 6... d4 {[%clk
0:04:49.5]} 7. Na4 {[%clk 0:04:45.4]} 7... b5 {[%clk 0:04:36]} 8. cxb6 {[%clk
0:04:35.9]} 8... axb6 {[%clk 0:04:34.5]} 9. e3 {[%clk 0:04:31.7]} 9... Bc5
{[%clk 0:04:06.7]} 10. Bb5 {[%clk 0:04:26]} 10... Bd7 {[%clk 0:03:52.1]} 11. O-O
{[%clk 0:04:19.4]} 11... dxe3 {[%clk 0:03:47.4]} 12. Bxe3 {[%clk 0:04:11.8]}
12... Bxe3 {[%clk 0:03:44.5]} 13. Re1 {[%clk 0:04:08.9]} 13... Nge7 {[%clk
0:03:42.9]} 14. Rxe3 {[%clk 0:04:05.6]} 14... O-O {[%clk 0:03:38.3]} 15. Rd3
{[%clk 0:03:55]} 1-0

[Event "Live Chess"]
[Site "Chess.com"]
[Date "2024.06.02"]
[Round "-"]
[White "silunn"]
[Black "matt1979"]
[Result "0-1"]
[WhiteElo "2123"]
[BlackElo "1421"]
[TimeControl "300"]
[EndTime "6:41:33 PDT"]
[Termination "matt1979 won on time"]

1. e4 {[%clk 0:04:58.5]} 1... d6 {[%clk 0:04:58.6]} 2. d4 {[%clk 0:04:56.6]}
2... Nf6 {[%clk 0:04:57.4]} 3. Nc3 {[%clk 0:04:55.3]} 3... Nbd7 {[%clk 0:04:56]}
4. Nf3 {[%clk 0:04:53.6]} 4... e5 {[%clk 0:04:54.8]} 5. Bc4 {[%clk 0:04:51.9]}
5... Be7 {[%clk 0:04:49.2]} 6. Bxf7+ {[%clk 0:04:35.7]} 6... Kxf7 {[%clk
0:04:47.7]} 7. Ng5+ {[%clk 0:04:35]} 7... Kg8 {[%clk 0:04:34.9]} 8. Ne6 {[%clk
0:04:33.8]} 8... Qe8 {[%clk 0:04:32.7]} 9. Nxc7 {[%clk 0:04:32.9]} 9... Qg6
{[%clk 0:04:27.2]} 10. Qf3 {[%clk 0:04:19]} 10... Rb8 {[%clk 0:04:15.1]} 11.
N3d5 {[%clk 0:03:34.7]} 11... Bd8 {[%clk 0:03:47.6]} 12. Ne6 {[%clk 0:03:24.7]}
12... Ba5+ {[%clk 0:03:34.9]} 13. Bd2 {[%clk 0:03:02.4]} 13... Bxd2+ {[%clk
0:03:32.2]} 14. Kxd2 {[%clk 0:03:02.3]} 14... Qxe4 {[%clk 0:03:15.4]} 15. Qg3
{[%clk 0:02:32.5]} 15... g6 {[%clk 0:02:49.7]} 16. Nc3 {[%clk 0:02:13.2]} 16...
Qf5 {[%clk 0:02:28.8]} 17. d5 {[%clk 0:01:50.3]} 17... Nxd5 {[%clk 0:02:15.8]}
18. Nxd5 {[%clk 0:01:39.5]} 18... Qxe6 {[%clk 0:02:13.8]} 19. Nc7 {[%clk
0:01:25.7]} 19... Qf6 {[%clk 0:02:04.4]} 20. Qb3+ {[%clk 0:01:11.7]} 20... Qf7
{[%clk 0:01:52.4]} 21. Qe3 {[%clk 0:01:10.1]} 21... Qf4 {[%clk 0:01:45.9]} 22.
Qxf4 {[%clk 0:01:09.1]} 22... exf4 {[%clk 0:01:45.1]} 23. Nd5 {[%clk 0:01:09]}
23... g5 {[%clk 0:01:37.8]} 24. Rhe1 {[%clk 0:01:08]} 24... Ne5 {[%clk
0:01:28.3]} 25. Rad1 {[%clk 0:01:02.1]} 25... Be6 {[%clk 0:01:20.6]} 26. Kc1
{[%clk 0:01:00.2]} 26... Kg7 {[%clk 0:01:08]} 27. Nc7 {[%clk 0:00:55]} 27... Bg4
{[%clk 0:00:55.8]} 28. f3 {[%clk 0:00:53]} 28... Bf5 {[%clk 0:00:50.2]} 29. Rxd6
{[%clk 0:00:51.7]} 29... Ng6 {[%clk 0:00:41.6]} 30. g4 {[%clk 0:00:45.7]} 30...
Bxc2 {[%clk 0:00:30.6]} 31. Kxc2 {[%clk 0:00:40.1]} 31... Rbc8 {[%clk
0:00:29.7]} 32. Rd7+ {[%clk 0:00:37.9]} 32... Kh6 {[%clk 0:00:25]} 33. Kb1
{[%clk 0:00:32.1]} 33... Rhg8 {[%clk 0:00:20.4]} 0-1

[Event "Live Chess"]
[Site "Chess.com"]
[Date "2024.06.02"]
[Round "-"]
[White "Plimsol"]
[Black "Ferrarifan27"]
[Result "1-0"]
[WhiteElo "2349"]
[BlackElo "2137"]
[TimeControl "300"]
[EndTime "6:41:37 PDT"]
[Termination "Plimsol won by resignation"]

1. e4 {[%clk 0:04:57.7]} 1... e5 {[%clk 0:04:57.8]} 2. Nf3 {[%clk 0:04:55.8]}
2... Nc6 {[%clk 0:04:55.5]} 3. Bb5 {[%clk 0:04:54.9]} 3... a6 {[%clk 0:04:54.2]}
4. Bxc6 {[%clk 0:04:54.1]} 4... dxc6 {[%clk 0:04:52.5]} 5. O-O {[%clk 0:04:54]}
5... Bg4 {[%clk 0:04:50.7]} 6. h3 {[%clk 0:04:52.5]} 6... h5 {[%clk 0:04:50]} 7.
d3 {[%clk 0:04:52]} 7... Qf6 {[%clk 0:04:48.9]} 8. Nbd2 {[%clk 0:04:50.7]} 8...
Ne7 {[%clk 0:04:48]} 9. Re1 {[%clk 0:04:50]} 9... Ng6 {[%clk 0:04:46.9]} 10. d4
{[%clk 0:04:48.9]} 10... O-O-O {[%clk 0:04:39.1]} 11. hxg4 {[%clk 0:04:39.3]}
11... hxg4 {[%clk 0:04:37.7]} 12. Nh2 {[%clk 0:04:38.4]} 12... Qh4 {[%clk
0:04:31.9]} 13. Qxg4+ {[%clk 0:04:36.6]} 13... Qxg4 {[%clk 0:04:30]} 14. Nxg4
{[%clk 0:04:35.9]} 14... exd4 {[%clk 0:04:24.9]} 15. g3 {[%clk 0:04:32.5]} 15...
Bb4 {[%clk 0:04:19.4]} 16. a3 {[%clk 0:04:27.7]} 16... Ba5 {[%clk 0:04:17.3]}
17. b4 {[%clk 0:04:25.2]} 17... Bb6 {[%clk 0:04:15.6]} 18. Nc4 {[%clk
0:04:24.8]} 18... Ba7 {[%clk 0:04:14.8]} 19. Kg2 {[%clk 0:04:14.4]} 19... d3
{[%clk 0:04:11.4]} 20. cxd3 {[%clk 0:04:13.5]} 20... Rxd3 {[%clk 0:04:10.8]} 21.
Be3 {[%clk 0:04:12.3]} 21... Rhd8 {[%clk 0:04:07.9]} 22. Bxa7 {[%clk 0:04:09.4]}
1-0

[Event "Live Chess"]
[Site "Chess.com"]
[Date "2024.06.02"]
[Round "-"]
[White "GerardATHart"]
[Black "davigator"]
[Result "0-1"]
[WhiteElo "1361"]
[BlackElo "2358"]
[TimeControl "300"]
[EndTime "6:42:16 PDT"]
[Termination "davigator won by resignation"]

1. e4 {[%clk 0:04:54.5]} 1... c5 {[%clk 0:04:58.6]} 2. Nc3 {[%clk 0:04:52.1]}
2... Nc6 {[%clk 0:04:57.2]} 3. Bb5 {[%clk 0:04:49.8]} 3... e6 {[%clk 0:04:54.7]}
4. Bxc6 {[%clk 0:04:43.8]} 4... dxc6 {[%clk 0:04:54.6]} 5. f4 {[%clk 0:04:35.3]}
5... e5 {[%clk 0:04:52.7]} 6. d3 {[%clk 0:04:33.1]} 6... Bd6 {[%clk 0:04:48.7]}
7. f5 {[%clk 0:04:30.6]} 7... Nf6 {[%clk 0:04:39.2]} 8. g4 {[%clk 0:04:14.3]}
8... h6 {[%clk 0:04:33.6]} 9. g5 {[%clk 0:04:07.9]} 9... hxg5 {[%clk 0:04:31.1]}
10. Bxg5 {[%clk 0:04:05.5]} 10... Be7 {[%clk 0:04:30.2]} 11. Nf3 {[%clk
0:03:50]} 11... Nh5 {[%clk 0:04:26.7]} 12. Bxe7 {[%clk 0:03:40.5]} 12... Qxe7
{[%clk 0:04:25.5]} 13. Qd2 {[%clk 0:03:29.9]} 13... Bd7 {[%clk 0:04:20.8]} 14.
O-O-O {[%clk 0:03:11.3]} 14... O-O-O {[%clk 0:04:19]} 15. Qg5 {[%clk 0:02:52.5]}
15... f6 {[%clk 0:04:17.4]} 16. Qg2 {[%clk 0:02:45.6]} 16... Be8 {[%clk
0:04:16.1]} 17. Qf2 {[%clk 0:02:38.9]} 17... Kb8 {[%clk 0:04:11.6]} 18. Na4
{[%clk 0:02:31.1]} 18... b6 {[%clk 0:04:09.9]} 19. b3 {[%clk 0:02:29.8]} 19...
Bf7 {[%clk 0:04:04.9]} 20. Nb2 {[%clk 0:02:27.5]} 20... Rh7 {[%clk 0:03:56.7]}
21. c3 {[%clk 0:02:19.2]} 21... Rhh8 {[%clk 0:03:42.4]} 22. Rd2 {[%clk
0:02:02.4]} 22... Rd7 {[%clk 0:03:40.9]} 23. Rhd1 {[%clk 0:02:00.1]} 23... Rhd8
{[%clk 0:03:39.6]} 24. d4 {[%clk 0:01:31.3]} 24... exd4 {[%clk 0:03:36]} 25.
cxd4 {[%clk 0:01:28.2]} 25... Qxe4 {[%clk 0:03:31.7]} 26. dxc5 {[%clk
0:01:20.8]} 26... Rxd2 {[%clk 0:03:30.7]} 27. Rxd2 {[%clk 0:01:19.5]} 27... Rxd2
{[%clk 0:03:29.4]} 28. Nxd2 {[%clk 0:01:16.5]} 28... Qf4 {[%clk 0:03:28.1]} 29.
cxb6 {[%clk 0:01:06.5]} 29... Qxf2 {[%clk 0:03:26.3]} 0-1

[Event "Live Chess"]
[Site "Chess.com"]
[Date "2024.06.02"]
[Round "-"]
[White "juniortay"]
[Black "grillage"]
[Result "0-1"]
[WhiteElo "2319"]
[BlackElo "1880"]
[TimeControl "300"]
[EndTime "6:42:32 PDT"]
[Termination "grillage won by resignation"]

1. e4 {[%clk 0:04:58.9]} 1... d5 {[%clk 0:04:58.6]} 2. exd5 {[%clk 0:04:57.9]}
2... Qxd5 {[%clk 0:04:57.5]} 3. Nc3 {[%clk 0:04:57.5]} 3... Qd8 {[%clk
0:04:56.4]} 4. d4 {[%clk 0:04:56.4]} 4... Nf6 {[%clk 0:04:55.6]} 5. Nf3 {[%clk
0:04:55.9]} 5... Bg4 {[%clk 0:04:54.6]} 6. Bc4 {[%clk 0:04:54.6]} 6... e6 {[%clk
0:04:52.2]} 7. Bd2 {[%clk 0:04:53.5]} 7... c6 {[%clk 0:04:49.4]} 8. h3 {[%clk
0:04:52.5]} 8... Bxf3 {[%clk 0:04:47.8]} 9. Qxf3 {[%clk 0:04:51.6]} 9... Nbd7
{[%clk 0:04:38.5]} 10. O-O-O {[%clk 0:04:50.2]} 10... Nb6 {[%clk 0:04:30]} 11.
Bb3 {[%clk 0:04:48.9]} 11... Qxd4 {[%clk 0:04:12.8]} 12. Bf4 {[%clk 0:04:46]}
12... Qb4 {[%clk 0:04:00.9]} 13. Rhe1 {[%clk 0:04:41.4]} 13... Be7 {[%clk
0:03:58.8]} 14. Be5 {[%clk 0:04:36.9]} 14... Nbd7 {[%clk 0:03:49.3]} 15. Bf4
{[%clk 0:04:15.5]} 15... Qa5 {[%clk 0:03:30.4]} 16. Ne4 {[%clk 0:03:24.1]} 16...
Nxe4 {[%clk 0:03:19.5]} 17. Rxe4 {[%clk 0:03:19.7]} 17... Nf6 {[%clk 0:03:12.4]}
18. Ra4 {[%clk 0:03:18]} 18... Qh5 {[%clk 0:03:08.4]} 19. g4 {[%clk 0:03:15.8]}
19... Qg6 {[%clk 0:02:48.5]} 20. c3 {[%clk 0:03:14.4]} 20... Nd5 {[%clk
0:02:44.6]} 21. Be5 {[%clk 0:02:58.7]} 21... Bg5+ {[%clk 0:02:37.7]} 22. Rd2
{[%clk 0:02:50.7]} 22... Bxd2+ {[%clk 0:02:24.7]} 23. Kxd2 {[%clk 0:02:50.6]}
23... Rd8 {[%clk 0:02:19.9]} 24. Ke1 {[%clk 0:02:45]} 24... O-O {[%clk 0:02:18]}
25. Kf1 {[%clk 0:02:28.1]} 25... Qb1+ {[%clk 0:02:14.6]} 26. Kg2 {[%clk
0:02:26.5]} 26... Ne7 {[%clk 0:01:52.4]} 27. Rxa7 {[%clk 0:02:18.2]} 27... Ng6
{[%clk 0:01:51.1]} 28. Bg3 {[%clk 0:02:10.7]} 28... Rd2 {[%clk 0:01:35.4]} 29.
Rxb7 {[%clk 0:02:06.9]} 29... Rxb2 {[%clk 0:01:23.8]} 30. Qxc6 {[%clk
0:01:39.5]} 30... Qe1 {[%clk 0:00:58.6]} 31. Rxf7 {[%clk 0:01:02.4]} 31... Rb1
{[%clk 0:00:50.7]} 32. Rxf8+ {[%clk 0:00:52.3]} 32... Nxf8 {[%clk 0:00:49.8]}
0-1

[Event "Live Chess"]
[Site "Chess.com"]
[Date "2024.06.02"]
[Round "-"]
[White "GEMdzq"]
[Black "JohanKjeldahl"]
[Result "0-1"]
[WhiteElo "2292"]
[BlackElo "1802"]
[TimeControl "300"]
[EndTime "6:42:33 PDT"]
[Termination "JohanKjeldahl won by resignation"]

1. e4 {[%clk 0:04:57]} 1... Nc6 {[%clk 0:04:57.2]} 2. Bc4 {[%clk 0:04:51.4]}
2... e6 {[%clk 0:04:54.4]} 3. Nf3 {[%clk 0:04:46.1]} 3... d5 {[%clk 0:04:49.3]}
4. exd5 {[%clk 0:04:44.9]} 4... exd5 {[%clk 0:04:48.4]} 5. Bb5 {[%clk
0:04:42.1]} 5... Nf6 {[%clk 0:04:46.8]} 6. O-O {[%clk 0:04:40.8]} 6... Be7
{[%clk 0:04:45.9]} 7. Re1 {[%clk 0:04:40.2]} 7... O-O {[%clk 0:04:44.9]} 8. d4
{[%clk 0:04:39]} 8... Bg4 {[%clk 0:04:40.9]} 9. Bxc6 {[%clk 0:04:29.4]} 9...
bxc6 {[%clk 0:04:37.8]} 10. h3 {[%clk 0:04:28.1]} 10... Bh5 {[%clk 0:04:34.8]}
11. Bf4 {[%clk 0:04:25.7]} 11... Rb8 {[%clk 0:04:29.6]} 12. b3 {[%clk
0:04:24.5]} 12... h6 {[%clk 0:04:25.7]} 13. Nbd2 {[%clk 0:04:23]} 13... Bd6
{[%clk 0:04:24.1]} 14. Be5 {[%clk 0:04:20.5]} 14... Qd7 {[%clk 0:04:09.7]} 15.
c4 {[%clk 0:04:15.8]} 15... Bxe5 {[%clk 0:04:03.8]} 16. Nxe5 {[%clk 0:04:02.4]}
16... Bxd1 {[%clk 0:04:00]} 17. Nxd7 {[%clk 0:04:01.4]} 17... Nxd7 {[%clk
0:03:58.6]} 18. Raxd1 {[%clk 0:03:59.8]} 18... Rfe8 {[%clk 0:03:57.2]} 19. Nf3
{[%clk 0:03:56.3]} 19... Kf8 {[%clk 0:03:52.1]} 20. Rxe8+ {[%clk 0:03:48.4]}
20... Rxe8 {[%clk 0:03:50.3]} 21. cxd5 {[%clk 0:03:46.9]} 21... cxd5 {[%clk
0:03:48.1]} 22. Kf1 {[%clk 0:03:46.2]} 22... Re6 {[%clk 0:03:32]} 23. Rc1 {[%clk
0:03:44.4]} 23... c6 {[%clk 0:03:30.9]} 24. b4 {[%clk 0:03:38.1]} 24... Ke7
{[%clk 0:03:27.8]} 25. a4 {[%clk 0:03:34.5]} 25... Kd6 {[%clk 0:03:25.7]} 26. a5
{[%clk 0:03:29.9]} 26... a6 {[%clk 0:03:14.9]} 27. Nd2 {[%clk 0:03:20.8]} 27...
Nf6 {[%clk 0:03:06.4]} 28. f3 {[%clk 0:03:09.7]} 28... Re3 {[%clk 0:03:03.7]}
29. Rb1 {[%clk 0:02:40.1]} 29... Nh5 {[%clk 0:02:55]} 30. Kf2 {[%clk 0:02:36.5]}
30... Rd3 {[%clk 0:02:51.5]} 31. Nb3 {[%clk 0:02:34.4]} 31... Nf4 {[%clk
0:02:47.1]} 32. Nc5 {[%clk 0:02:19.4]} 32... Rxd4 {[%clk 0:02:42.8]} 33. Nxa6
{[%clk 0:02:18.4]} 33... g5 {[%clk 0:02:40.4]} 34. g3 {[%clk 0:02:13]} 34...
Rd2+ {[%clk 0:02:33]} 35. Ke1 {[%clk 0:02:05.6]} 35... Re2+ {[%clk 0:02:20.1]}
36. Kd1 {[%clk 0:01:58.2]} 36... Rh2 {[%clk 0:02:17.8]} 37. gxf4 {[%clk
0:01:56.9]} 37... gxf4 {[%clk 0:02:16.8]} 38. Nc5 {[%clk 0:01:54.9]} 38... Rxh3
{[%clk 0:02:15.2]} 39. a6 {[%clk 0:01:53.9]} 39... Rxf3 {[%clk 0:02:13.8]} 40.
Ra1 {[%clk 0:01:47.3]} 40... Rf1+ {[%clk 0:02:12.3]} 41. Ke2 {[%clk 0:01:40.8]}
41... Rxa1 {[%clk 0:02:10.5]} 42. Kf3 {[%clk 0:01:39.8]} 42... Ke5 {[%clk
0:02:03.6]} 43. Nd3+ {[%clk 0:01:26.7]} 43... Kd4 {[%clk 0:02:00.2]} 44. Nxf4
{[%clk 0:01:25.3]} 44... Rxa6 {[%clk 0:01:57.6]} 0-1

[Event "Live Chess"]
[Site "Chess.com"]
[Date "2024.06.02"]
[Round "-"]
[White "Ksenia_2013"]
[Black "Duke_of_Bebington"]
[Result "0-1"]
[WhiteElo "965"]
[BlackElo "1601"]
[TimeControl "300"]
[EndTime "6:42:34 PDT"]
[Termination "Duke_of_Bebington won by checkmate"]

1. e4 {[%clk 0:04:57.8]} 1... e5 {[%clk 0:04:58.8]} 2. Nf3 {[%clk 0:04:56.1]}
2... Nf6 {[%clk 0:04:56.8]} 3. Nxe5 {[%clk 0:04:54.7]} 3... d6 {[%clk
0:04:55.1]} 4. Nf3 {[%clk 0:04:46.4]} 4... Nxe4 {[%clk 0:04:53.7]} 5. Qe2 {[%clk
0:04:43.9]} 5... Qe7 {[%clk 0:04:52.7]} 6. Nc3 {[%clk 0:04:41.4]} 6... Nxc3
{[%clk 0:04:44.9]} 7. bxc3 {[%clk 0:04:35.6]} 7... Nc6 {[%clk 0:04:42.3]} 8. d3
{[%clk 0:04:22]} 8... Qxe2+ {[%clk 0:04:31.3]} 9. Bxe2 {[%clk 0:04:19]} 9... Be7
{[%clk 0:04:29.7]} 10. Bf4 {[%clk 0:04:10.4]} 10... Bf6 {[%clk 0:04:26.9]} 11.
d4 {[%clk 0:04:07]} 11... O-O {[%clk 0:04:18.7]} 12. Bd3 {[%clk 0:04:03.2]}
12... Re8+ {[%clk 0:04:15.8]} 13. Kd2 {[%clk 0:03:57.8]} 13... Bg4 {[%clk
0:04:11.2]} 14. Rhe1 {[%clk 0:03:55.3]} 14... Bxf3 {[%clk 0:04:07.4]} 15. gxf3
{[%clk 0:03:53.4]} 15... h6 {[%clk 0:04:03]} 16. Rxe8+ {[%clk 0:03:48.7]} 16...
Rxe8 {[%clk 0:04:00.9]} 17. Rb1 {[%clk 0:03:46.6]} 17... b6 {[%clk 0:03:58.9]}
18. c4 {[%clk 0:03:44.5]} 18... Nxd4 {[%clk 0:03:55.4]} 19. Be3 {[%clk
0:03:37.7]} 19... Nxf3+ {[%clk 0:03:52.9]} 20. Ke2 {[%clk 0:03:35.7]} 20... Nd4+
{[%clk 0:03:50.2]} 21. Kd2 {[%clk 0:03:33.2]} 21... Nf3+ {[%clk 0:03:46.9]} 22.
Ke2 {[%clk 0:03:31.5]} 22... Nxh2 {[%clk 0:03:46]} 23. Kd2 {[%clk 0:03:24.4]}
23... Nf3+ {[%clk 0:03:43.8]} 24. Ke2 {[%clk 0:03:22.8]} 24... Ng5 {[%clk
0:03:38.7]} 25. Rg1 {[%clk 0:03:17.6]} 25... Kh8 {[%clk 0:03:27.3]} 26. Kd2
{[%clk 0:03:09.6]} 26... Nf3+ {[%clk 0:03:22.3]} 27. Ke2 {[%clk 0:03:07.5]}
27... Nxg1+ {[%clk 0:03:22.1]} 28. Kf1 {[%clk 0:03:06.2]} 28... Nf3 {[%clk
0:03:20.7]} 29. Be2 {[%clk 0:03:04.5]} 29... Nd4 {[%clk 0:03:15.8]} 30. Bxd4
{[%clk 0:03:02.1]} 30... Bxd4 {[%clk 0:03:14.5]} 31. Bh5 {[%clk 0:03:00.4]}
31... Kg8 {[%clk 0:03:12.2]} 32. f4 {[%clk 0:02:55.1]} 32... Re3 {[%clk
0:03:07.4]} 33. Kf2 {[%clk 0:02:53.3]} 33... Rc3+ {[%clk 0:03:06]} 34. Ke2
{[%clk 0:02:50.1]} 34... Rxc2+ {[%clk 0:03:05.1]} 35. Kd1 {[%clk 0:02:48.7]}
35... Rxa2 {[%clk 0:03:03.5]} 36. Kc1 {[%clk 0:02:46.7]} 36... Rh2 {[%clk
0:03:01.2]} 37. Bd1 {[%clk 0:02:43.5]} 37... Be3+ {[%clk 0:03:00.4]} 38. Kb1
{[%clk 0:02:41.8]} 38... Bxf4 {[%clk 0:02:59.7]} 39. Ka1 {[%clk 0:02:39.5]}
39... Rh1 {[%clk 0:02:58.6]} 40. c5 {[%clk 0:02:37.8]} 40... dxc5 {[%clk
0:02:56.5]} 41. Kb1 {[%clk 0:02:34.4]} 41... Rxd1+ {[%clk 0:02:56]} 42. Kb2
{[%clk 0:02:32.7]} 42... c4 {[%clk 0:02:55.3]} 43. Kc3 {[%clk 0:02:31.2]} 43...
b5 {[%clk 0:02:52.8]} 44. Kb4 {[%clk 0:02:29.8]} 44... Rb1+ {[%clk 0:02:51.2]}
45. Kc5 {[%clk 0:02:28.1]} 45... c3 {[%clk 0:02:50]} 46. Kd4 {[%clk 0:02:26.6]}
46... c2 {[%clk 0:02:49.4]} 47. Kd3 {[%clk 0:02:25.3]} 47... c1=Q {[%clk
0:02:47.9]} 48. Ke4 {[%clk 0:02:21.2]} 48... a5 {[%clk 0:02:44.5]} 49. Kf5
{[%clk 0:02:19.4]} 49... a4 {[%clk 0:02:43.1]} 50. Ke4 {[%clk 0:02:17.8]} 50...
a3 {[%clk 0:02:42.6]} 51. Kf5 {[%clk 0:02:16.6]} 51... a2 {[%clk 0:02:41.9]} 52.
Ke4 {[%clk 0:02:15.7]} 52... a1=Q {[%clk 0:02:41.3]} 53. Kf3 {[%clk 0:02:13.6]}
53... Qe3+ {[%clk 0:02:36.8]} 54. Kg2 {[%clk 0:02:11.6]} 54... Qg3# {[%clk
0:02:34.1]} 0-1